[Event "Late-Titled-Tuesday-Blitz-October-03-2023"]
[Site "Chess.com"]
[Date "2023.10.03"]
[Round "7"]
[White "DucksParadise"]
[Black "venturov"]
[Result "1-0"]
[WhiteElo "2645"]
[BlackElo "2491"]
[TimeControl "180+1"]
[EndTime "15:13:33 PDT"]
[Termination "DucksParadise won by checkmate"]

1. d4 {[%clk 0:03:00.9]} 1... Nf6 {[%clk 0:02:59]} 2. c4 {[%clk 0:03:00.2]} 2...
d6 {[%clk 0:02:59.2]} 3. Nc3 {[%clk 0:02:57.3]} 3... Nbd7 {[%clk 0:02:59.4]} 4.
e4 {[%clk 0:02:54.4]} 4... e5 {[%clk 0:02:59.6]} 5. Nf3 {[%clk 0:02:52.7]} 5...
g6 {[%clk 0:02:57.2]} 6. Be2 {[%clk 0:02:42.9]} 6... Bg7 {[%clk 0:02:57.5]} 7.
Be3 {[%clk 0:02:39.3]} 7... O-O {[%clk 0:02:36.7]} 8. O-O {[%clk 0:02:37.5]}
8... Re8 {[%clk 0:02:36.9]} 9. d5 {[%clk 0:02:35.3]} 9... Nh5 {[%clk 0:02:36.9]}
10. g3 {[%clk 0:02:33.2]} 10... Bf8 {[%clk 0:02:36.1]} 11. Kh1 {[%clk
0:02:31.5]} 11... Be7 {[%clk 0:02:30.6]} 12. Nd2 {[%clk 0:01:38.3]} 12... Ng7
{[%clk 0:02:30.5]} 13. f4 {[%clk 0:01:34.4]} 13... f5 {[%clk 0:02:18.7]} 14. g4
{[%clk 0:01:23.6]} 14... exf4 {[%clk 0:02:06.4]} 15. Bxf4 {[%clk 0:01:14.2]}
15... Nc5 {[%clk 0:01:31]} 16. exf5 {[%clk 0:01:07.5]} 16... gxf5 {[%clk
0:01:31.9]} 17. b4 {[%clk 0:01:05]} 17... Na6 {[%clk 0:01:24.9]} 18. a3 {[%clk
0:01:01.4]} 18... Bg5 {[%clk 0:01:22.2]} 19. Qc2 {[%clk 0:00:54.2]} 19... Bf6
{[%clk 0:00:59.7]} 20. Bd3 {[%clk 0:00:48.3]} 20... fxg4 {[%clk 0:00:47.5]} 21.
Bxh7+ {[%clk 0:00:49.2]} 21... Kh8 {[%clk 0:00:47.6]} 22. Bg6 {[%clk 0:00:45.1]}
22... Rf8 {[%clk 0:00:30.9]} 23. Bh6 {[%clk 0:00:45]} 23... Bd7 {[%clk
0:00:29.3]} 24. Nde4 {[%clk 0:00:44.1]} 24... Be5 {[%clk 0:00:24.8]} 25. Ng5
{[%clk 0:00:16.3]} 25... Kg8 {[%clk 0:00:12]} 26. Bf7+ {[%clk 0:00:11.1]} 26...
Rxf7 {[%clk 0:00:08.2]} 27. Qh7+ {[%clk 0:00:11.7]} 27... Kf8 {[%clk 0:00:07.1]}
28. Rxf7+ {[%clk 0:00:12.6]} 28... Ke8 {[%clk 0:00:06.8]} 29. Qg8# {[%clk
0:00:13.5]} 1-0

[Event "Late-Titled-Tuesday-Blitz-October-03-2023"]
[Site "Chess.com"]
[Date "2023.10.03"]
[Round "7"]
[White "Veleamater"]
[Black "Verony64"]
[Result "1-0"]
[WhiteElo "2318"]
[BlackElo "2222"]
[TimeControl "180+1"]
[EndTime "15:13:34 PDT"]
[Termination "Veleamater won on time"]

1. g3 {[%clk 0:03:00.9]} 1... d6 {[%clk 0:02:57.8]} 2. Bg2 {[%clk 0:03:01]} 2...
c6 {[%clk 0:02:58.5]} 3. d3 {[%clk 0:03:01.6]} 3... e5 {[%clk 0:02:59]} 4. e4
{[%clk 0:03:02.1]} 4... f5 {[%clk 0:02:58]} 5. Nc3 {[%clk 0:03:00.2]} 5... Nf6
{[%clk 0:02:58.1]} 6. f4 {[%clk 0:02:54.5]} 6... Be7 {[%clk 0:02:50.3]} 7. Nf3
{[%clk 0:02:53.9]} 7... fxe4 {[%clk 0:02:48.2]} 8. dxe4 {[%clk 0:02:53.8]} 8...
Bg4 {[%clk 0:02:43.3]} 9. O-O {[%clk 0:02:52.9]} 9... O-O {[%clk 0:02:42.1]} 10.
h3 {[%clk 0:02:52.8]} 10... Bxf3 {[%clk 0:02:41.6]} 11. Qxf3 {[%clk 0:02:46.2]}
11... Nbd7 {[%clk 0:02:36.1]} 12. f5 {[%clk 0:02:46.1]} 12... h6 {[%clk
0:02:27.6]} 13. Be3 {[%clk 0:02:43.2]} 13... Nh7 {[%clk 0:02:27.8]} 14. g4
{[%clk 0:02:42.4]} 14... Bg5 {[%clk 0:02:25.4]} 15. Bf2 {[%clk 0:02:42.4]} 15...
b5 {[%clk 0:02:22.3]} 16. Ne2 {[%clk 0:02:42.3]} 16... Qe7 {[%clk 0:02:14.2]}
17. Rad1 {[%clk 0:02:40.2]} 17... Rad8 {[%clk 0:02:14]} 18. Qg3 {[%clk
0:02:39.5]} 18... Nb6 {[%clk 0:01:36.2]} 19. b3 {[%clk 0:02:38.6]} 19... d5
{[%clk 0:01:34.2]} 20. Bxb6 {[%clk 0:02:38]} 20... axb6 {[%clk 0:01:32.6]} 21.
exd5 {[%clk 0:02:37.8]} 21... Qc5+ {[%clk 0:01:27.2]} 22. Kh1 {[%clk 0:02:36]}
22... Qxc2 {[%clk 0:01:26.9]} 23. Qd3 {[%clk 0:02:32]} 23... Qxd3 {[%clk
0:01:07.9]} 24. Rxd3 {[%clk 0:02:31.2]} 24... Rd6 {[%clk 0:00:51.4]} 25. Rfd1
{[%clk 0:02:28.3]} 25... Nf6 {[%clk 0:00:51.6]} 26. Nc3 {[%clk 0:02:27.4]} 26...
Rfd8 {[%clk 0:00:47.8]} 27. a3 {[%clk 0:02:03.3]} 27... Bf4 {[%clk 0:00:21.4]}
28. Ne4 {[%clk 0:02:01.1]} 28... Nxe4 {[%clk 0:00:19.3]} 29. Bxe4 {[%clk
0:02:00.2]} 29... c5 {[%clk 0:00:18.8]} 30. Rc3 {[%clk 0:01:55]} 30... Kf8
{[%clk 0:00:18.7]} 31. Kg2 {[%clk 0:01:52.4]} 31... Ke7 {[%clk 0:00:18]} 32. Kf3
{[%clk 0:01:52.8]} 32... Bg5 {[%clk 0:00:14.5]} 33. b4 {[%clk 0:01:47.6]} 33...
c4 {[%clk 0:00:11.9]} 34. a4 {[%clk 0:01:48]} 34... bxa4 {[%clk 0:00:09.6]} 35.
Rxc4 {[%clk 0:01:48.1]} 35... a3 {[%clk 0:00:06.6]} 36. Ra1 {[%clk 0:01:44.5]}
36... Ra8 {[%clk 0:00:06]} 37. Rc3 {[%clk 0:01:42.9]} 37... Ra4 {[%clk
0:00:05.1]} 38. Rb3 {[%clk 0:01:42.3]} 38... b5 {[%clk 0:00:05.6]} 39. Raxa3
{[%clk 0:01:39.7]} 39... Rda6 {[%clk 0:00:06.5]} 40. Rxa4 {[%clk 0:01:39.1]}
40... Rxa4 {[%clk 0:00:07.1]} 41. Bd3 {[%clk 0:01:37.4]} 41... Kd6 {[%clk
0:00:07.7]} 42. Bxb5 {[%clk 0:01:37.3]} 42... Ra1 {[%clk 0:00:06.7]} 43. Be2
{[%clk 0:01:34.1]} 43... Kxd5 {[%clk 0:00:05.9]} 44. b5 {[%clk 0:01:34]} 44...
Kd6 {[%clk 0:00:04.8]} 45. b6 {[%clk 0:01:34.4]} 45... Ra8 {[%clk 0:00:04.5]}
46. b7 {[%clk 0:01:19.9]} 46... Rb8 {[%clk 0:00:05.4]} 47. Ke4 {[%clk
0:01:19.4]} 47... Bd8 {[%clk 0:00:04.2]} 48. Ba6 {[%clk 0:01:17.7]} 48... Kc7
{[%clk 0:00:04]} 49. Kxe5 {[%clk 0:01:17.3]} 49... Bf6+ {[%clk 0:00:04.6]} 50.
Ke6 {[%clk 0:01:17.4]} 50... Bd4 {[%clk 0:00:03.5]} 51. Kf7 {[%clk 0:01:16.2]}
51... Kc6 {[%clk 0:00:02.6]} 52. Rb5 {[%clk 0:01:11.9]} 1-0

[Event "Late-Titled-Tuesday-Blitz-October-03-2023"]
[Site "Chess.com"]
[Date "2023.10.03"]
[Round "7"]
[White "alexrustemov"]
[Black "HajiyevKanan"]
[Result "1-0"]
[WhiteElo "2819"]
[BlackElo "2543"]
[TimeControl "180+1"]
[EndTime "15:13:35 PDT"]
[Termination "alexrustemov won by checkmate"]

1. d4 {[%clk 0:02:55.9]} 1... d5 {[%clk 0:02:59.3]} 2. c4 {[%clk 0:02:54.1]}
2... c6 {[%clk 0:02:59.4]} 3. Nc3 {[%clk 0:02:54.3]} 3... Nf6 {[%clk 0:03:00]}
4. e3 {[%clk 0:02:54.3]} 4... a6 {[%clk 0:03:00.7]} 5. Qc2 {[%clk 0:02:52.2]}
5... g6 {[%clk 0:03:00.5]} 6. Nf3 {[%clk 0:02:51.2]} 6... Bf5 {[%clk 0:03:00.1]}
7. Qb3 {[%clk 0:02:47.7]} 7... Bc8 {[%clk 0:02:51.7]} 8. Be2 {[%clk 0:02:40.3]}
8... Bg7 {[%clk 0:02:51.5]} 9. O-O {[%clk 0:02:39.9]} 9... O-O {[%clk
0:02:51.8]} 10. Bd2 {[%clk 0:02:39.1]} 10... dxc4 {[%clk 0:02:46.5]} 11. Bxc4
{[%clk 0:02:38.9]} 11... b5 {[%clk 0:02:47.1]} 12. Be2 {[%clk 0:02:38.2]} 12...
Bb7 {[%clk 0:02:47.4]} 13. Rfd1 {[%clk 0:02:35.8]} 13... Nbd7 {[%clk 0:02:47.2]}
14. a4 {[%clk 0:02:34.2]} 14... Nb6 {[%clk 0:02:43.2]} 15. Ne5 {[%clk 0:02:31]}
15... Nfd7 {[%clk 0:02:35.1]} 16. Nd3 {[%clk 0:02:22.9]} 16... e6 {[%clk
0:02:18.1]} 17. Ne4 {[%clk 0:02:20.3]} 17... Rb8 {[%clk 0:01:42.4]} 18. Bb4
{[%clk 0:02:12.7]} 18... Re8 {[%clk 0:01:39.6]} 19. Nd6 {[%clk 0:02:10.1]} 19...
Nxa4 {[%clk 0:01:25.3]} 20. Nxe8 {[%clk 0:02:05.6]} 20... Qxe8 {[%clk
0:01:26.2]} 21. Qc2 {[%clk 0:02:02.1]} 21... Rc8 {[%clk 0:01:22.4]} 22. Bc5
{[%clk 0:01:59.3]} 22... Naxc5 {[%clk 0:01:15.7]} 23. Nxc5 {[%clk 0:01:57.1]}
23... Nxc5 {[%clk 0:01:09.5]} 24. dxc5 {[%clk 0:01:57.2]} 24... Ra8 {[%clk
0:00:57.4]} 25. Ra5 {[%clk 0:01:53.4]} 25... e5 {[%clk 0:00:49.1]} 26. b4 {[%clk
0:01:52.2]} 26... Bc8 {[%clk 0:00:48.4]} 27. Bf3 {[%clk 0:01:48.3]} 27... Bf8
{[%clk 0:00:41.9]} 28. Qe4 {[%clk 0:01:41.3]} 28... Bb7 {[%clk 0:00:30.6]} 29.
Ra2 {[%clk 0:01:39.6]} 29... f5 {[%clk 0:00:30]} 30. Qc2 {[%clk 0:01:38.8]}
30... e4 {[%clk 0:00:30.7]} 31. Qb3+ {[%clk 0:01:34.7]} 31... Kg7 {[%clk
0:00:27.8]} 32. Qc3+ {[%clk 0:01:29.6]} 32... Kh6 {[%clk 0:00:27.3]} 33. Be2
{[%clk 0:01:28.6]} 33... Bg7 {[%clk 0:00:26.9]} 34. Qb3 {[%clk 0:01:26.5]} 34...
Rd8 {[%clk 0:00:25.5]} 35. Rad2 {[%clk 0:01:25.7]} 35... Rxd2 {[%clk 0:00:25.2]}
36. Rxd2 {[%clk 0:01:26.4]} 36... Bc8 {[%clk 0:00:23.9]} 37. Qd1 {[%clk
0:01:19]} 37... Be5 {[%clk 0:00:21.5]} 38. Rd8 {[%clk 0:01:12.7]} 38... Qe6
{[%clk 0:00:21.4]} 39. g3 {[%clk 0:01:12.6]} 39... Bb7 {[%clk 0:00:12.8]} 40.
Qd7 {[%clk 0:01:09.7]} 40... Qa2 {[%clk 0:00:02.8]} 41. Bf1 {[%clk 0:01:03.5]}
41... Bc3 {[%clk 0:00:03.1]} 42. Qe7 {[%clk 0:00:53.1]} 42... Be1 {[%clk
0:00:02.8]} 43. Qh4+ {[%clk 0:00:52.8]} 43... Kg7 {[%clk 0:00:03.4]} 44. Rd7+
{[%clk 0:00:53.4]} 44... Kf8 {[%clk 0:00:02.5]} 45. Qd8# {[%clk 0:00:52.1]} 1-0

[Event "Late-Titled-Tuesday-Blitz-October-03-2023"]
[Site "Chess.com"]
[Date "2023.10.03"]
[Round "7"]
[White "jk13"]
[Black "Inepton_Fermion"]
[Result "1-0"]
[WhiteElo "2677"]
[BlackElo "2419"]
[TimeControl "180+1"]
[EndTime "15:13:39 PDT"]
[Termination "jk13 won on time"]

1. e4 {[%clk 0:03:00.9]} 1... c5 {[%clk 0:02:59.1]} 2. c3 {[%clk 0:03:00.7]}
2... d5 {[%clk 0:02:58]} 3. exd5 {[%clk 0:03:01.2]} 3... Qxd5 {[%clk 0:02:58.8]}
4. d4 {[%clk 0:03:01.8]} 4... Nf6 {[%clk 0:02:57.8]} 5. Nf3 {[%clk 0:03:02.7]}
5... e6 {[%clk 0:02:54.4]} 6. Na3 {[%clk 0:03:03.1]} 6... a6 {[%clk 0:02:50.4]}
7. Nc2 {[%clk 0:03:02.9]} 7... Nc6 {[%clk 0:02:39.8]} 8. Be3 {[%clk 0:03:02.9]}
8... cxd4 {[%clk 0:01:52.1]} 9. Ncxd4 {[%clk 0:03:03.8]} 9... Nxd4 {[%clk
0:01:50.2]} 10. Bxd4 {[%clk 0:03:04.7]} 10... Be7 {[%clk 0:01:49.4]} 11. Bd3
{[%clk 0:03:03.9]} 11... O-O {[%clk 0:01:46.9]} 12. O-O {[%clk 0:03:04.5]} 12...
b5 {[%clk 0:01:41.6]} 13. Qe2 {[%clk 0:02:59.6]} 13... Bb7 {[%clk 0:01:40.1]}
14. Rfe1 {[%clk 0:02:48.8]} 14... h6 {[%clk 0:01:28.2]} 15. a4 {[%clk
0:02:40.3]} 15... bxa4 {[%clk 0:01:20.8]} 16. Rxa4 {[%clk 0:02:37.3]} 16... a5
{[%clk 0:01:21.2]} 17. Bc4 {[%clk 0:02:25.4]} 17... Qh5 {[%clk 0:01:14.7]} 18.
Ne5 {[%clk 0:02:22.3]} 18... Qxe2 {[%clk 0:01:06.1]} 19. Bxe2 {[%clk 0:02:23.2]}
19... Rfb8 {[%clk 0:00:37.2]} 20. Rea1 {[%clk 0:02:14.2]} 20... Bd8 {[%clk
0:00:36.7]} 21. c4 {[%clk 0:01:55.9]} 21... Be4 {[%clk 0:00:32.2]} 22. Bd1
{[%clk 0:01:42.1]} 22... Bc7 {[%clk 0:00:30.7]} 23. Bc3 {[%clk 0:01:34.7]} 23...
Rd8 {[%clk 0:00:18]} 24. Kf1 {[%clk 0:01:17.1]} 24... Nd7 {[%clk 0:00:13.2]} 25.
Nxd7 {[%clk 0:01:02.9]} 25... Rxd7 {[%clk 0:00:14.1]} 26. Ke1 {[%clk 0:00:58.9]}
26... Bxg2 {[%clk 0:00:07]} 27. Bxa5 {[%clk 0:00:50.9]} 27... Bc6 {[%clk
0:00:06]} 28. R4a3 {[%clk 0:00:47.6]} 28... Bxh2 {[%clk 0:00:04.4]} 29. Bc3
{[%clk 0:00:43.2]} 29... Rad8 {[%clk 0:00:02.9]} 30. b4 {[%clk 0:00:38.2]} 30...
Bd6 {[%clk 0:00:02.3]} 31. Rb3 {[%clk 0:00:33.7]} 31... Be4 {[%clk 0:00:02.3]}
32. c5 {[%clk 0:00:32.5]} 32... Be7 {[%clk 0:00:02.8]} 33. b5 {[%clk 0:00:30.3]}
33... Bd5 {[%clk 0:00:01.9]} 34. c6 {[%clk 0:00:27.6]} 34... Rd6 {[%clk
0:00:01.4]} 35. Rb2 {[%clk 0:00:26.6]} 35... Be4 {[%clk 0:00:01.3]} 36. Rd2
{[%clk 0:00:25.7]} 1-0

[Event "Late-Titled-Tuesday-Blitz-October-03-2023"]
[Site "Chess.com"]
[Date "2023.10.03"]
[Round "7"]
[White "Byniolus"]
[Black "subham777"]
[Result "1-0"]
[WhiteElo "2754"]
[BlackElo "2539"]
[TimeControl "180+1"]
[EndTime "15:13:40 PDT"]
[Termination "Byniolus won on time"]

1. d4 {[%clk 0:03:00.9]} 1... d5 {[%clk 0:02:54.9]} 2. Bf4 {[%clk 0:03:00.7]}
2... Nf6 {[%clk 0:02:54.5]} 3. e3 {[%clk 0:03:00.9]} 3... c5 {[%clk 0:02:52.4]}
4. c3 {[%clk 0:03:01.1]} 4... Qb6 {[%clk 0:02:52.1]} 5. Qb3 {[%clk 0:03:00.9]}
5... c4 {[%clk 0:02:50]} 6. Qc2 {[%clk 0:03:00.5]} 6... Nc6 {[%clk 0:02:49.2]}
7. Nd2 {[%clk 0:03:00.2]} 7... g6 {[%clk 0:02:47.4]} 8. e4 {[%clk 0:03:00.1]}
8... dxe4 {[%clk 0:02:41.4]} 9. Nxc4 {[%clk 0:02:54.7]} 9... Qd8 {[%clk
0:02:39.7]} 10. Ne2 {[%clk 0:02:49.3]} 10... Bg7 {[%clk 0:02:36.7]} 11. Ng3
{[%clk 0:02:45.9]} 11... Bf5 {[%clk 0:02:13.1]} 12. Nxf5 {[%clk 0:02:40.3]}
12... gxf5 {[%clk 0:02:14]} 13. Qb3 {[%clk 0:02:38.8]} 13... Qc8 {[%clk
0:01:58.8]} 14. O-O-O {[%clk 0:02:16.5]} 14... O-O {[%clk 0:01:46.4]} 15. d5
{[%clk 0:02:10.7]} 15... Nb8 {[%clk 0:01:39.4]} 16. Ne3 {[%clk 0:01:41.4]} 16...
Ng4 {[%clk 0:01:19.1]} 17. Nxg4 {[%clk 0:01:34.5]} 17... fxg4 {[%clk 0:01:18.7]}
18. h3 {[%clk 0:01:19.4]} 18... Na6 {[%clk 0:00:43.3]} 19. Be3 {[%clk
0:01:05.8]} 19... Nc5 {[%clk 0:00:38.4]} 20. Qc4 {[%clk 0:01:02.5]} 20... b6
{[%clk 0:00:27.2]} 21. Be2 {[%clk 0:00:55.5]} 21... g3 {[%clk 0:00:22.7]} 22.
fxg3 {[%clk 0:00:53.1]} 22... Qd7 {[%clk 0:00:12.8]} 23. Bxc5 {[%clk 0:00:35.8]}
23... Rfc8 {[%clk 0:00:11.2]} 24. Bg4 {[%clk 0:00:24.1]} 24... f5 {[%clk
0:00:07.5]} 25. d6+ {[%clk 0:00:24.7]} 25... Kh8 {[%clk 0:00:03.9]} 26. dxe7
{[%clk 0:00:24.2]} 26... Qe8 {[%clk 0:00:02.4]} 27. Bxf5 {[%clk 0:00:13.3]}
27... Rxc5 {[%clk 0:00:02.2]} 28. Qxe4 {[%clk 0:00:12.8]} 1-0

[Event "Late-Titled-Tuesday-Blitz-October-03-2023"]
[Site "Chess.com"]
[Date "2023.10.03"]
[Round "7"]
[White "Bilan_Danila"]
[Black "UK_23"]
[Result "1-0"]
[WhiteElo "2537"]
[BlackElo "2403"]
[TimeControl "180+1"]
[EndTime "15:13:40 PDT"]
[Termination "Bilan_Danila won by resignation"]

1. d4 {[%clk 0:03:00.9]} 1... d5 {[%clk 0:03:00.2]} 2. Nf3 {[%clk 0:03:00.9]}
2... Nf6 {[%clk 0:03:00.3]} 3. c4 {[%clk 0:02:57.2]} 3... e6 {[%clk 0:03:00.1]}
4. Nc3 {[%clk 0:02:57.2]} 4... Be7 {[%clk 0:03:00.4]} 5. Bg5 {[%clk 0:02:56.7]}
5... O-O {[%clk 0:03:00.4]} 6. e3 {[%clk 0:02:57.1]} 6... b6 {[%clk 0:03:00.7]}
7. Ne5 {[%clk 0:02:52.2]} 7... Bb7 {[%clk 0:02:56.5]} 8. Bd3 {[%clk 0:02:46]}
8... dxc4 {[%clk 0:02:53.9]} 9. Bxc4 {[%clk 0:02:46.9]} 9... c5 {[%clk
0:02:53.5]} 10. dxc5 {[%clk 0:02:37.6]} 10... Qxd1+ {[%clk 0:02:48.6]} 11. Rxd1
{[%clk 0:02:28.8]} 11... Bxc5 {[%clk 0:02:49.5]} 12. O-O {[%clk 0:02:22.3]}
12... h6 {[%clk 0:02:34.2]} 13. Bh4 {[%clk 0:02:20.2]} 13... Ba6 {[%clk
0:02:12.9]} 14. Bxa6 {[%clk 0:02:08.1]} 14... Nxa6 {[%clk 0:02:13.8]} 15. Bxf6
{[%clk 0:02:07.5]} 15... gxf6 {[%clk 0:02:13.1]} 16. Nd7 {[%clk 0:02:08.4]}
16... Rfc8 {[%clk 0:02:09]} 17. Nxf6+ {[%clk 0:02:06.9]} 17... Kg7 {[%clk
0:02:09.7]} 18. Nfe4 {[%clk 0:02:01.7]} 18... Bf8 {[%clk 0:02:08.6]} 19. g3
{[%clk 0:01:48.9]} 19... Nb4 {[%clk 0:02:07.6]} 20. Rd7 {[%clk 0:01:41.3]} 20...
a6 {[%clk 0:01:57.8]} 21. Rfd1 {[%clk 0:01:30.6]} 21... b5 {[%clk 0:01:57.9]}
22. Rb7 {[%clk 0:01:24.5]} 22... Rcb8 {[%clk 0:01:54.4]} 23. Rdd7 {[%clk
0:01:19.8]} 23... Rxb7 {[%clk 0:01:54.5]} 24. Rxb7 {[%clk 0:01:20.7]} 24... Nd3
{[%clk 0:01:52.5]} 25. b3 {[%clk 0:01:09]} 25... b4 {[%clk 0:01:50.5]} 26. Ne2
{[%clk 0:01:04.3]} 26... Rc8 {[%clk 0:01:49.9]} 27. Nd4 {[%clk 0:01:03.7]} 27...
Kg6 {[%clk 0:01:45.9]} 28. h4 {[%clk 0:01:01.8]} 28... h5 {[%clk 0:01:44.8]} 29.
Ng5 {[%clk 0:00:58.7]} 29... Rc1+ {[%clk 0:01:33.2]} 30. Kg2 {[%clk 0:00:56.9]}
30... Ne1+ {[%clk 0:01:22.5]} 31. Kh2 {[%clk 0:00:54.4]} 31... Bh6 {[%clk
0:00:59.4]} 32. Nxf7 {[%clk 0:00:48.7]} 32... Nd3 {[%clk 0:00:59.4]} 33. Nh8+
{[%clk 0:00:20.1]} 33... Kf6 {[%clk 0:00:54.4]} 34. Rf7+ {[%clk 0:00:20.5]}
34... Ke5 {[%clk 0:00:54.9]} 35. Kg2 {[%clk 0:00:16.6]} 35... Ne1+ {[%clk
0:00:54.2]} 36. Kh3 {[%clk 0:00:14]} 36... Nd3 {[%clk 0:00:53.6]} 37. Ng6+
{[%clk 0:00:12.9]} 37... Kd6 {[%clk 0:00:50.6]} 38. Rf6 {[%clk 0:00:12.9]} 38...
Bg7 {[%clk 0:00:44.2]} 39. Nf5+ {[%clk 0:00:12.7]} 39... Kd5 {[%clk 0:00:38.1]}
40. Nxg7 {[%clk 0:00:13.6]} 40... Rc2 {[%clk 0:00:38.9]} 41. Nf4+ {[%clk
0:00:12.7]} 41... Kc5 {[%clk 0:00:34.3]} 42. Nxd3+ {[%clk 0:00:12.4]} 1-0

[Event "Late-Titled-Tuesday-Blitz-October-03-2023"]
[Site "Chess.com"]
[Date "2023.10.03"]
[Round "7"]
[White "canary2016"]
[Black "RIPOL"]
[Result "0-1"]
[WhiteElo "2153"]
[BlackElo "2434"]
[TimeControl "180+1"]
[EndTime "15:13:40 PDT"]
[Termination "RIPOL won on time"]

1. d4 {[%clk 0:02:56.2]} 1... Nf6 {[%clk 0:02:58.9]} 2. c4 {[%clk 0:02:56.2]}
2... e6 {[%clk 0:02:58.6]} 3. Nc3 {[%clk 0:02:55.2]} 3... Bb4 {[%clk 0:02:57.5]}
4. Qc2 {[%clk 0:02:55.7]} 4... O-O {[%clk 0:02:54.5]} 5. Bg5 {[%clk 0:02:54.6]}
5... d6 {[%clk 0:02:50.5]} 6. Nf3 {[%clk 0:02:54.6]} 6... Nbd7 {[%clk 0:02:47]}
7. e3 {[%clk 0:02:53.2]} 7... b6 {[%clk 0:02:43.4]} 8. Bd3 {[%clk 0:02:53.2]}
8... h6 {[%clk 0:02:40.8]} 9. Bh4 {[%clk 0:02:53]} 9... Bb7 {[%clk 0:02:40.1]}
10. Be2 {[%clk 0:02:53.1]} 10... c5 {[%clk 0:02:35.4]} 11. O-O {[%clk
0:02:52.9]} 11... Bxc3 {[%clk 0:02:27.4]} 12. Qxc3 {[%clk 0:02:50]} 12... Rc8
{[%clk 0:02:22.1]} 13. Rac1 {[%clk 0:02:47.7]} 13... cxd4 {[%clk 0:02:16.7]} 14.
exd4 {[%clk 0:02:46.6]} 14... d5 {[%clk 0:02:14.5]} 15. Qe3 {[%clk 0:02:42.2]}
15... dxc4 {[%clk 0:02:11.5]} 16. Rxc4 {[%clk 0:02:41.9]} 16... Ba6 {[%clk
0:01:48.2]} 17. Rxc8 {[%clk 0:02:32.3]} 17... Qxc8 {[%clk 0:01:47.3]} 18. Ne5
{[%clk 0:02:20.5]} 18... Bxe2 {[%clk 0:01:41.7]} 19. Qxe2 {[%clk 0:02:18.1]}
19... Nd5 {[%clk 0:01:28.8]} 20. Qd2 {[%clk 0:02:06.2]} 20... Nxe5 {[%clk
0:01:25.1]} 21. dxe5 {[%clk 0:02:05.4]} 21... Qc4 {[%clk 0:01:25.5]} 22. Bg3
{[%clk 0:01:54.9]} 22... Qxa2 {[%clk 0:01:23.3]} 23. h3 {[%clk 0:01:52.9]} 23...
Rc8 {[%clk 0:01:20.6]} 24. Rd1 {[%clk 0:01:43.2]} 24... Qb3 {[%clk 0:01:17.7]}
25. Qe2 {[%clk 0:01:34.1]} 25... Rc2 {[%clk 0:01:08.7]} 26. Qa6 {[%clk
0:01:32.7]} 26... Rxb2 {[%clk 0:01:04.7]} 27. Rc1 {[%clk 0:01:30.5]} 27... Rb1
{[%clk 0:01:00.1]} 28. Rxb1 {[%clk 0:01:19.1]} 28... Qxb1+ {[%clk 0:00:58.9]}
29. Kh2 {[%clk 0:01:19.7]} 29... g5 {[%clk 0:00:48.8]} 30. Qxa7 {[%clk 0:01:19]}
30... Qe4 {[%clk 0:00:47]} 31. Qa8+ {[%clk 0:01:04.3]} 31... Kg7 {[%clk
0:00:45.3]} 32. Qd8 {[%clk 0:01:03.2]} 32... b5 {[%clk 0:00:40.4]} 33. f3 {[%clk
0:01:01]} 33... Qe2 {[%clk 0:00:31.1]} 34. h4 {[%clk 0:00:46.5]} 34... Ne3
{[%clk 0:00:29.7]} 35. Qf6+ {[%clk 0:00:44.4]} 35... Kg8 {[%clk 0:00:29.5]} 36.
Qd8+ {[%clk 0:00:43.9]} 36... Kh7 {[%clk 0:00:28.7]} 0-1

[Event "Late-Titled-Tuesday-Blitz-October-03-2023"]
[Site "Chess.com"]
[Date "2023.10.03"]
[Round "7"]
[White "SEBAZZANO"]
[Black "andjela_djidjika"]
[Result "1-0"]
[WhiteElo "2247"]
[BlackElo "1969"]
[TimeControl "180+1"]
[EndTime "15:13:42 PDT"]
[Termination "SEBAZZANO won by checkmate"]

1. d4 {[%clk 0:03:00.5]} 1... d6 {[%clk 0:02:58.2]} 2. e4 {[%clk 0:02:56.6]}
2... Nd7 {[%clk 0:02:56.5]} 3. Nc3 {[%clk 0:02:54.6]} 3... g6 {[%clk 0:02:56.4]}
4. Nf3 {[%clk 0:02:54.3]} 4... Bg7 {[%clk 0:02:57]} 5. Bf4 {[%clk 0:02:52.6]}
5... e6 {[%clk 0:02:55.4]} 6. Qd2 {[%clk 0:02:52.3]} 6... Ne7 {[%clk 0:02:56]}
7. O-O-O {[%clk 0:02:51.7]} 7... O-O {[%clk 0:02:52.6]} 8. Bh6 {[%clk
0:02:48.6]} 8... a6 {[%clk 0:02:52.3]} 9. h4 {[%clk 0:02:48.1]} 9... Nf6 {[%clk
0:02:48.9]} 10. h5 {[%clk 0:02:40.3]} 10... Nxh5 {[%clk 0:02:42.7]} 11. g4
{[%clk 0:02:26.9]} 11... Bxh6 {[%clk 0:02:22.8]} 12. Qxh6 {[%clk 0:02:25.6]}
12... Kh8 {[%clk 0:02:18.3]} 13. gxh5 {[%clk 0:02:22.6]} 13... Ng8 {[%clk
0:02:18.4]} 14. Qe3 {[%clk 0:02:15.5]} 14... b6 {[%clk 0:02:09.3]} 15. hxg6
{[%clk 0:02:10.9]} 15... fxg6 {[%clk 0:02:10.2]} 16. Ng5 {[%clk 0:02:09]} 16...
h6 {[%clk 0:02:07.4]} 17. Bc4 {[%clk 0:02:01.3]} 17... Qf6 {[%clk 0:02:05]} 18.
e5 {[%clk 0:01:36.8]} 18... Qf5 {[%clk 0:01:41.2]} 19. Bd3 {[%clk 0:01:12.5]}
19... Qf4 {[%clk 0:01:33.5]} 20. Nh3 {[%clk 0:00:52.4]} 20... Qxe3+ {[%clk
0:01:31.2]} 21. fxe3 {[%clk 0:00:53.3]} 21... Ne7 {[%clk 0:01:30.5]} 22. exd6
{[%clk 0:00:51.5]} 22... cxd6 {[%clk 0:01:31.4]} 23. Nf4 {[%clk 0:00:51.3]}
23... Kg7 {[%clk 0:01:30]} 24. Rdg1 {[%clk 0:00:38.8]} 24... g5 {[%clk
0:01:27.3]} 25. Nh5+ {[%clk 0:00:34.6]} 25... Kg8 {[%clk 0:01:20.6]} 26. Ne4
{[%clk 0:00:31.3]} 26... Nd5 {[%clk 0:01:15.6]} 27. Kd2 {[%clk 0:00:28.5]} 27...
Bb7 {[%clk 0:01:02.3]} 28. Nxd6 {[%clk 0:00:24.3]} 28... Bc6 {[%clk 0:01:01.8]}
29. e4 {[%clk 0:00:22.1]} 29... Nb4 {[%clk 0:00:55.3]} 30. Rf1 {[%clk
0:00:21.9]} 30... Nxd3 {[%clk 0:00:50.4]} 31. cxd3 {[%clk 0:00:22.8]} 31... Rfd8
{[%clk 0:00:45.9]} 32. Nc4 {[%clk 0:00:20.8]} 32... Rxd4 {[%clk 0:00:44.2]} 33.
Ke3 {[%clk 0:00:20.9]} 33... Rdd8 {[%clk 0:00:40.2]} 34. Rf6 {[%clk 0:00:19.9]}
34... b5 {[%clk 0:00:32.4]} 35. Ne5 {[%clk 0:00:19.6]} 35... Bd7 {[%clk
0:00:25.4]} 36. Rhf1 {[%clk 0:00:19]} 36... Rf8 {[%clk 0:00:23.8]} 37. Rg6+
{[%clk 0:00:18.7]} 37... Kh7 {[%clk 0:00:23]} 38. Rg7+ {[%clk 0:00:18.5]} 38...
Kh8 {[%clk 0:00:22.5]} 39. Ng6# {[%clk 0:00:18.7]} 1-0